Workbook

Sheet المخزن
B1: كود | C1: اسم الصنف | D1: نوع المنتج | E1: رصيد اول مدة | F1: تكلفة اول مدة | G1: القيمة الافتتاحية | H1: وادر | I1: منصرف | J1: رصيد حالى | K1: متوسط التكلفة | L1: قيمة المخزون الحالى
B2: 1 | C2: oppo F5 | E2: 100 | F2: 4000 | G2: =Table1[[#This Row],[رصيد اول مدة]]*Table1[[#This Row],[تكلفة اول مدة]] -> 400000
B3: 2 | C3: iphone 7 | E3: 50 | F3: 5000 | G3: =Table1[[#This Row],[رصيد اول مدة]]*Table1[[#This Row],[تكلفة اول مدة]] -> 250000
B4: 3 | C4: sony z5 | E4: 100 | F4: 3000 | G4: =Table1[[#This Row],[رصيد اول مدة]]*Table1[[#This Row],[تكلفة اول مدة]] -> 300000
B5: 4 | C5: nokia 3310 | E5: 10 | F5: 500 | G5: =Table1[[#This Row],[رصيد اول مدة]]*Table1[[#This Row],[تكلفة اول مدة]] -> 5000
B6: 5 | G6: =Table1[[#This Row],[رصيد اول مدة]]*Table1[[#This Row],[تكلفة اول مدة]] -> 0
B7: 6 | G7: =Table1[[#This Row],[رصيد اول مدة]]*Table1[[#This Row],[تكلفة اول مدة]] -> 0
B8: 7 | G8: =Table1[[#This Row],[رصيد اول مدة]]*Table1[[#This Row],[تكلفة اول مدة]] -> 0
B9: 8 | G9: =Table1[[#This Row],[رصيد اول مدة]]*Table1[[#This Row],[تكلفة اول مدة]] -> 0
B10: 9 | G10: =Table1[[#This Row],[رصيد اول مدة]]*Table1[[#This Row],[تكلفة اول مدة]] -> 0
B11: 10 | G11: =Table1[[#This Row],[رصيد اول مدة]]*Table1[[#This Row],[تكلفة اول مدة]] -> 0
B12: 11 | G12: =Table1[[#This Row],[رصيد اول مدة]]*Table1[[#This Row],[تكلفة اول مدة]] -> 0
B13: 12 | G13: =Table1[[#This Row],[رصيد اول مدة]]*Table1[[#This Row],[تكلفة اول مدة]] -> 0
B14: 13 | G14: =Table1[[#This Row],[رصيد اول مدة]]*Table1[[#This Row],[تكلفة اول مدة]] -> 0
B15: 14 | G15: =Table1[[#This Row],[رصيد اول مدة]]*Table1[[#This Row],[تكلفة اول مدة]] -> 0
B16: 15 | G16: =Table1[[#This Row],[رصيد اول مدة]]*Table1[[#This Row],[تكلفة اول مدة]] -> 0
B17: 16 | G17: =Table1[[#This Row],[رصيد اول مدة]]*Table1[[#This Row],[تكلفة اول مدة]] -> 0
B18: 17 | G18: =Table1[[#This Row],[رصيد اول مدة]]*Table1[[#This Row],[تكلفة اول مدة]] -> 0
B19: 18 | G19: =Table1[[#This Row],[رصيد اول مدة]]*Table1[[#This Row],[تكلفة اول مدة]] -> 0
B20: 19 | G20: =Table1[[#This Row],[رصيد اول مدة]]*Table1[[#This Row],[تكلفة اول مدة]] -> 0
B21: 20 | G21: =Table1[[#This Row],[رصيد اول مدة]]*Table1[[#This Row],[تكلفة اول مدة]] -> 0
B22: 21 | G22: =Table1[[#This Row],[رصيد اول مدة]]*Table1[[#This Row],[تكلفة اول مدة]] -> 0
B23: 22 | G23: =Table1[[#This Row],[رصيد اول مدة]]*Table1[[#This Row],[تكلفة اول مدة]] -> 0
B24: 23 | G24: =Table1[[#This Row],[رصيد اول مدة]]*Table1[[#This Row],[تكلفة اول مدة]] -> 0
B25: 24 | G25: =Table1[[#This Row],[رصيد اول مدة]]*Table1[[#This Row],[تكلفة اول مدة]] -> 0
B26: 25 | G26: =Table1[[#This Row],[رصيد اول مدة]]*Table1[[#This Row],[تكلفة اول مدة]] -> 0
B27: 26 | G27: =Table1[[#This Row],[رصيد اول مدة]]*Table1[[#This Row],[تكلفة اول مدة]] -> 0
B28: 27 | G28: =Table1[[#This Row],[رصيد اول مدة]]*Table1[[#This Row],[تكلفة اول مدة]] -> 0
B29: 28 | G29: =Table1[[#This Row],[رصيد اول مدة]]*Table1[[#This Row],[تكلفة اول مدة]] -> 0
B30: 29 | G30: =Table1[[#This Row],[رصيد اول مدة]]*Table1[[#This Row],[تكلفة اول مدة]] -> 0
B31: 30 | G31: =Table1[[#This Row],[رصيد اول مدة]]*Table1[[#This Row],[تكلفة اول مدة]] -> 0
B32: 31 | G32: =Table1[[#This Row],[رصيد اول مدة]]*Table1[[#This Row],[تكلفة اول مدة]] -> 0
B33: 32 | G33: =Table1[[#This Row],[رصيد اول مدة]]*Table1[[#This Row],[تكلفة اول مدة]] -> 0
B34: 33 | G34: =Table1[[#This Row],[رصيد اول مدة]]*Table1[[#This Row],[تكلفة اول مدة]] -> 0
B35: 34 | G35: =Table1[[#This Row],[رصيد اول مدة]]*Table1[[#This Row],[تكلفة اول مدة]] -> 0
B36: 35 | G36: =Table1[[#This Row],[رصيد اول مدة]]*Table1[[#This Row],[تكلفة اول مدة]] -> 0
B37: 36 | G37: =Table1[[#This Row],[رصيد اول مدة]]*Table1[[#This Row],[تكلفة اول مدة]] -> 0
B38: 37 | G38: =Table1[[#This Row],[رصيد اول مدة]]*Table1[[#This Row],[تكلفة اول مدة]] -> 0
B39: 38 | G39: =Table1[[#This Row],[رصيد اول مدة]]*Table1[[#This Row],[تكلفة اول مدة]] -> 0
B40: 39 | G40: =Table1[[#This Row],[رصيد اول مدة]]*Table1[[#This Row],[تكلفة اول مدة]] -> 0
B41: 40 | G41: =Table1[[#This Row],[رصيد اول مدة]]*Table1[[#This Row],[تكلفة اول مدة]] -> 0
B42: 41 | G42: =Table1[[#This Row],[رصيد اول مدة]]*Table1[[#This Row],[تكلفة اول مدة]] -> 0
B43: 42 | G43: =Table1[[#This Row],[رصيد اول مدة]]*Table1[[#This Row],[تكلفة اول مدة]] -> 0
B44: 43 | G44: =Table1[[#This Row],[رصيد اول مدة]]*Table1[[#This Row],[تكلفة اول مدة]] -> 0
B45: 44 | G45: =Table1[[#This Row],[رصيد اول مدة]]*Table1[[#This Row],[تكلفة اول مدة]] -> 0
B46: 45 | G46: =Table1[[#This Row],[رصيد اول مدة]]*Table1[[#This Row],[تكلفة اول مدة]] -> 0
B47: 46 | G47: =Table1[[#This Row],[رصيد اول مدة]]*Table1[[#This Row],[تكلفة اول مدة]] -> 0
B48: 47 | G48: =Table1[[#This Row],[رصيد اول مدة]]*Table1[[#This Row],[تكلفة اول مدة]] -> 0
B49: 48 | G49: =Table1[[#This Row],[رصيد اول مدة]]*Table1[[#This Row],[تكلفة اول مدة]] -> 0
B50: 49 | G50: =Table1[[#This Row],[رصيد اول مدة]]*Table1[[#This Row],[تكلفة اول مدة]] -> 0
B51: 50 | G51: =Table1[[#This Row],[رصيد اول مدة]]*Table1[[#This Row],[تكلفة اول مدة]] -> 0
B52: 51 | G52: =Table1[[#This Row],[رصيد اول مدة]]*Table1[[#This Row],[تكلفة اول مدة]] -> 0
B53: 52 | G53: =Table1[[#This Row],[رصيد اول مدة]]*Table1[[#This Row],[تكلفة اول مدة]] -> 0
B54: 53 | G54: =Table1[[#This Row],[رصيد اول مدة]]*Table1[[#This Row],[تكلفة اول مدة]] -> 0
B55: 54 | G55: =Table1[[#This Row],[رصيد اول مدة]]*Table1[[#This Row],[تكلفة اول مدة]] -> 0
B56: 55 | G56: =Table1[[#This Row],[رصيد اول مدة]]*Table1[[#This Row],[تكلفة اول مدة]] -> 0
B57: 56 | G57: =Table1[[#This Row],[رصيد اول مدة]]*Table1[[#This Row],[تكلفة اول مدة]] -> 0
B58: 57 | G58: =Table1[[#This Row],[رصيد اول مدة]]*Table1[[#This Row],[تكلفة اول مدة]] -> 0
B59: 58 | G59: =Table1[[#This Row],[رصيد اول مدة]]*Table1[[#This Row],[تكلفة اول مدة]] -> 0
B60: 59 | G60: =Table1[[#This Row],[رصيد اول مدة]]*Table1[[#This Row],[تكلفة اول مدة]] -> 0
B61: 60 | G61: =Table1[[#This Row],[رصيد اول مدة]]*Table1[[#This Row],[تكلفة اول مدة]] -> 0
B62: 61 | G62: =Table1[[#This Row],[رصيد اول مدة]]*Table1[[#This Row],[تكلفة اول مدة]] -> 0
B63: 62 | G63: =Table1[[#This Row],[رصيد اول مدة]]*Table1[[#This Row],[تكلفة اول مدة]] -> 0
B64: 63 | G64: =Table1[[#This Row],[رصيد اول مدة]]*Table1[[#This Row],[تكلفة اول مدة]] -> 0
B65: 64 | G65: =Table1[[#This Row],[رصيد اول مدة]]*Table1[[#This Row],[تكلفة اول مدة]] -> 0
B66: 65 | G66: =Table1[[#This Row],[رصيد اول مدة]]*Table1[[#This Row],[تكلفة اول مدة]] -> 0
B67: 66 | G67: =Table1[[#This Row],[رصيد اول مدة]]*Table1[[#This Row],[تكلفة اول مدة]] -> 0
B68: 67 | G68: =Table1[[#This Row],[رصيد اول مدة]]*Table1[[#This Row],[تكلفة اول مدة]] -> 0
B69: 68 | G69: =Table1[[#This Row],[رصيد اول مدة]]*Table1[[#This Row],[تكلفة اول مدة]] -> 0
B70: 69 | G70: =Table1[[#This Row],[رصيد اول مدة]]*Table1[[#This Row],[تكلفة اول مدة]] -> 0
B71: 70 | G71: =Table1[[#This Row],[رصيد اول مدة]]*Table1[[#This Row],[تكلفة اول مدة]] -> 0
B72: 71 | G72: =Table1[[#This Row],[رصيد اول مدة]]*Table1[[#This Row],[تكلفة اول مدة]] -> 0
B73: 72 | G73: =Table1[[#This Row],[رصيد اول مدة]]*Table1[[#This Row],[تكلفة اول مدة]] -> 0
B74: 73 | G74: =Table1[[#This Row],[رصيد اول مدة]]*Table1[[#This Row],[تكلفة اول مدة]] -> 0
B75: 74 | G75: =Table1[[#This Row],[رصيد اول مدة]]*Table1[[#This Row],[تكلفة اول مدة]] -> 0
B76: 75 | G76: =Table1[[#This Row],[رصيد اول مدة]]*Table1[[#This Row],[تكلفة اول مدة]] -> 0
B77: 76 | G77: =Table1[[#This Row],[رصيد اول مدة]]*Table1[[#This Row],[تكلفة اول مدة]] -> 0
B78: 77 | G78: =Table1[[#This Row],[رصيد اول مدة]]*Table1[[#This Row],[تكلفة اول مدة]] -> 0
B79: 78 | G79: =Table1[[#This Row],[رصيد اول مدة]]*Table1[[#This Row],[تكلفة اول مدة]] -> 0
B80: 79 | G80: =Table1[[#This Row],[رصيد اول مدة]]*Table1[[#This Row],[تكلفة اول مدة]] -> 0
B81: 80 | G81: =Table1[[#This Row],[رصيد اول مدة]]*Table1[[#This Row],[تكلفة اول مدة]] -> 0
B82: 81 | G82: =Table1[[#This Row],[رصيد اول مدة]]*Table1[[#This Row],[تكلفة اول مدة]] -> 0
B83: 82 | G83: =Table1[[#This Row],[رصيد اول مدة]]*Table1[[#This Row],[تكلفة اول مدة]] -> 0
B84: 83 | G84: =Table1[[#This Row],[رصيد اول مدة]]*Table1[[#This Row],[تكلفة اول مدة]] -> 0
B85: 84 | G85: =Table1[[#This Row],[رصيد اول مدة]]*Table1[[#This Row],[تكلفة اول مدة]] -> 0
B86: 85 | G86: =Table1[[#This Row],[رصيد اول مدة]]*Table1[[#This Row],[تكلفة اول مدة]] -> 0
B87: 86 | G87: =Table1[[#This Row],[رصيد اول مدة]]*Table1[[#This Row],[تكلفة اول مدة]] -> 0
B88: 87 | G88: =Table1[[#This Row],[رصيد اول مدة]]*Table1[[#This Row],[تكلفة اول مدة]] -> 0
B89: 88 | G89: =Table1[[#This Row],[رصيد اول مدة]]*Table1[[#This Row],[تكلفة اول مدة]] -> 0
B90: 89 | G90: =Table1[[#This Row],[رصيد اول مدة]]*Table1[[#This Row],[تكلفة اول مدة]] -> 0
B91: 90 | G91: =Table1[[#This Row],[رصيد اول مدة]]*Table1[[#This Row],[تكلفة اول مدة]] -> 0
B92: 91 | G92: =Table1[[#This Row],[رصيد اول مدة]]*Table1[[#This Row],[تكلفة اول مدة]] -> 0
B93: 92 | G93: =Table1[[#This Row],[رصيد اول مدة]]*Table1[[#This Row],[تكلفة اول مدة]] -> 0
B94: 93 | G94: =Table1[[#This Row],[رصيد اول مدة]]*Table1[[#This Row],[تكلفة اول مدة]] -> 0
B95: 94 | G95: =Table1[[#This Row],[رصيد اول مدة]]*Table1[[#This Row],[تكلفة اول مدة]] -> 0
B96: 95 | G96: =Table1[[#This Row],[رصيد اول مدة]]*Table1[[#This Row],[تكلفة اول مدة]] -> 0
B97: 96 | G97: =Table1[[#This Row],[رصيد اول مدة]]*Table1[[#This Row],[تكلفة اول مدة]] -> 0
B98: 97 | G98: =Table1[[#This Row],[رصيد اول مدة]]*Table1[[#This Row],[تكلفة اول مدة]] -> 0
B99: 98 | G99: =Table1[[#This Row],[رصيد اول مدة]]*Table1[[#This Row],[تكلفة اول مدة]] -> 0
B100: 99 | G100: =Table1[[#This Row],[رصيد اول مدة]]*Table1[[#This Row],[تكلفة اول مدة]] -> 0
B101: 100 | G101: =Table1[[#This Row],[رصيد اول مدة]]*Table1[[#This Row],[تكلفة اول مدة]] -> 0
B102: 101 | G102: =Table1[[#This Row],[رصيد اول مدة]]*Table1[[#This Row],[تكلفة اول مدة]] -> 0
B103: 102 | G103: =Table1[[#This Row],[رصيد اول مدة]]*Table1[[#This Row],[تكلفة اول مدة]] -> 0
B104: 103 | G104: =Table1[[#This Row],[رصيد اول مدة]]*Table1[[#This Row],[تكلفة اول مدة]] -> 0
B105: 104 | G105: =Table1[[#This Row],[رصيد اول مدة]]*Table1[[#This Row],[تكلفة اول مدة]] -> 0
B106: 105 | G106: =Table1[[#This Row],[رصيد اول مدة]]*Table1[[#This Row],[تكلفة اول مدة]] -> 0
B107: 106 | G107: =Table1[[#This Row],[رصيد اول مدة]]*Table1[[#This Row],[تكلفة اول مدة]] -> 0
B108: 107 | G108: =Table1[[#This Row],[رصيد اول مدة]]*Table1[[#This Row],[تكلفة اول مدة]] -> 0
B109: 108 | G109: =Table1[[#This Row],[رصيد اول مدة]]*Table1[[#This Row],[تكلفة اول مدة]] -> 0
B110: 109 | G110: =Table1[[#This Row],[رصيد اول مدة]]*Table1[[#This Row],[تكلفة اول مدة]] -> 0
B111: 110 | G111: =Table1[[#This Row],[رصيد اول مدة]]*Table1[[#This Row],[تكلفة اول مدة]] -> 0
B112: 111 | G112: =Table1[[#This Row],[رصيد اول مدة]]*Table1[[#This Row],[تكلفة اول مدة]] -> 0
B113: 112 | G113: =Table1[[#This Row],[رصيد اول مدة]]*Table1[[#This Row],[تكلفة اول مدة]] -> 0
B114: 113 | G114: =Table1[[#This Row],[رصيد اول مدة]]*Table1[[#This Row],[تكلفة اول مدة]] -> 0
B115: 114 | G115: =Table1[[#This Row],[رصيد اول مدة]]*Table1[[#This Row],[تكلفة اول مدة]] -> 0
B116: 115 | G116: =Table1[[#This Row],[رصيد اول مدة]]*Table1[[#This Row],[تكلفة اول مدة]] -> 0
B117: 116 | G117: =Table1[[#This Row],[رصيد اول مدة]]*Table1[[#This Row],[تكلفة اول مدة]] -> 0
B118: 117 | G118: =Table1[[#This Row],[رصيد اول مدة]]*Table1[[#This Row],[تكلفة اول مدة]] -> 0
B119: 118 | G119: =Table1[[#This Row],[رصيد اول مدة]]*Table1[[#This Row],[تكلفة اول مدة]] -> 0
B120: 119 | G120: =Table1[[#This Row],[رصيد اول مدة]]*Table1[[#This Row],[تكلفة اول مدة]] -> 0
B121: 120 | G121: =Table1[[#This Row],[رصيد اول مدة]]*Table1[[#This Row],[تكلفة اول مدة]] -> 0
B122: 121 | G122: =Table1[[#This Row],[رصيد اول مدة]]*Table1[[#This Row],[تكلفة اول مدة]] -> 0
B123: 122 | G123: =Table1[[#This Row],[رصيد اول مدة]]*Table1[[#This Row],[تكلفة اول مدة]] -> 0
B124: 123 | G124: =Table1[[#This Row],[رصيد اول مدة]]*Table1[[#This Row],[تكلفة اول مدة]] -> 0
B125: 124 | G125: =Table1[[#This Row],[رصيد اول مدة]]*Table1[[#This Row],[تكلفة اول مدة]] -> 0
B126: 125 | G126: =Table1[[#This Row],[رصيد اول مدة]]*Table1[[#This Row],[تكلفة اول مدة]] -> 0
B127: 126 | G127: =Table1[[#This Row],[رصيد اول مدة]]*Table1[[#This Row],[تكلفة اول مدة]] -> 0
B128: 127 | G128: =Table1[[#This Row],[رصيد اول مدة]]*Table1[[#This Row],[تكلفة اول مدة]] -> 0
B129: 128 | G129: =Table1[[#This Row],[رصيد اول مدة]]*Table1[[#This Row],[تكلفة اول مدة]] -> 0
B130: 129 | G130: =Table1[[#This Row],[رصيد اول مدة]]*Table1[[#This Row],[تكلفة اول مدة]] -> 0
B131: 130 | G131: =Table1[[#This Row],[رصيد اول مدة]]*Table1[[#This Row],[تكلفة اول مدة]] -> 0
B132: 131 | G132: =Table1[[#This Row],[رصيد اول مدة]]*Table1[[#This Row],[تكلفة اول مدة]] -> 0
B133: 132 | G133: =Table1[[#This Row],[رصيد اول مدة]]*Table1[[#This Row],[تكلفة اول مدة]] -> 0
B134: 133 | G134: =Table1[[#This Row],[رصيد اول مدة]]*Table1[[#This Row],[تكلفة اول مدة]] -> 0
B135: 134 | G135: =Table1[[#This Row],[رصيد اول مدة]]*Table1[[#This Row],[تكلفة اول مدة]] -> 0
B136: 135 | G136: =Table1[[#This Row],[رصيد اول مدة]]*Table1[[#This Row],[تكلفة اول مدة]] -> 0
B137: 136 | G137: =Table1[[#This Row],[رصيد اول مدة]]*Table1[[#This Row],[تكلفة اول مدة]] -> 0
B138: 137 | G138: =Table1[[#This Row],[رصيد اول مدة]]*Table1[[#This Row],[تكلفة اول مدة]] -> 0
B139: 138 | G139: =Table1[[#This Row],[رصيد اول مدة]]*Table1[[#This Row],[تكلفة اول مدة]] -> 0
B140: 139 | G140: =Table1[[#This Row],[رصيد اول مدة]]*Table1[[#This Row],[تكلفة اول مدة]] -> 0
B141: 140 | G141: =Table1[[#This Row],[رصيد اول مدة]]*Table1[[#This Row],[تكلفة اول مدة]] -> 0
B142: 141 | G142: =Table1[[#This Row],[رصيد اول مدة]]*Table1[[#This Row],[تكلفة اول مدة]] -> 0
B143: 142 | G143: =Table1[[#This Row],[رصيد اول مدة]]*Table1[[#This Row],[تكلفة اول مدة]] -> 0
B144: 143 | G144: =Table1[[#This Row],[رصيد اول مدة]]*Table1[[#This Row],[تكلفة اول مدة]] -> 0
B145: 144 | G145: =Table1[[#This Row],[رصيد اول مدة]]*Table1[[#This Row],[تكلفة اول مدة]] -> 0
B146: 145 | G146: =Table1[[#This Row],[رصيد اول مدة]]*Table1[[#This Row],[تكلفة اول مدة]] -> 0
B147: 146 | G147: =Table1[[#This Row],[رصيد اول مدة]]*Table1[[#This Row],[تكلفة اول مدة]] -> 0
B148: 147 | G148: =Table1[[#This Row],[رصيد اول مدة]]*Table1[[#This Row],[تكلفة اول مدة]] -> 0
G149: =Table1[[#This Row],[رصيد اول مدة]]*Table1[[#This Row],[تكلفة اول مدة]] -> 0
B150: Total | G150: =SUBTOTAL(109,Table1[القيمة الافتتاحية]) -> 955000 | L150: =SUBTOTAL(109,Table1[قيمة المخزون الحالى]) -> 0

Sheet رصيد العملاء (hidden)
A1: اسم العميل | B1: الفرع | C1: رصيد افتتاحى | D1: مدين | E1: دائن | F1: مرتجع مبيعات | G1: رصيد حالى
A2: Moh | B2: Mohandseen
A3: Ahmed | B3: October
A4: Capital agro | B4: Obour
A5: wahba | B5: Gamra
A6: Ali | B6: Assuit
A7: mom | B7: Mansora

Sheet INVOICE
G4: INVOICE #
C5: ALANDALOUS FOR IMPORT AND EXPORT | G5: 8
C6: INVOICE DETAILS
C9: DATE | D9: 2018-11-20 | F9: TAX | G9: YES
C10: CUSTOMER NAME | D10: Capital agro | F10: INVOICE NO | G10: 50
C11: BRANCH | D11: =IFERROR(VLOOKUP(D10,Table4[[اسم العميل]:[الفرع]],2,0),"") -> Obour | F11: PAYMENT TERMS | G11: 40
C12: SALES PERSON | D12: Abd Alaziz Ahmed | F12: DUE DATE | G12: 43454
C14: SN | D14: PRODUCT | E14: QTY | F14: UNIT PRICE | G14: TOTAL AMOUNT
C15: 1 | D15: oppo F5 | E15: 10 | F15: 5000 | G15: =Table12[[#This Row],[Column11]]*Table12[[#This Row],[Column7]] -> 50000
C16: 2 | D16: iphone 7 | E16: 10 | F16: 7000 | G16: =Table12[[#This Row],[Column11]]*Table12[[#This Row],[Column7]] -> 70000
C17: 3 | D17: sony z5 | E17: 5 | F17: 4000 | G17: =Table12[[#This Row],[Column11]]*Table12[[#This Row],[Column7]] -> 20000
C18: 4 | G18: =Table12[[#This Row],[Column11]]*Table12[[#This Row],[Column7]] -> 0
C19: 5 | G19: =Table12[[#This Row],[Column11]]*Table12[[#This Row],[Column7]] -> 0
C20: 6 | G20: =Table12[[#This Row],[Column11]]*Table12[[#This Row],[Column7]] -> 0
C21: 7 | G21: =Table12[[#This Row],[Column11]]*Table12[[#This Row],[Column7]] -> 0
C22: 8 | G22: =Table12[[#This Row],[Column11]]*Table12[[#This Row],[Column7]] -> 0
C23: 9 | G23: =Table12[[#This Row],[Column11]]*Table12[[#This Row],[Column7]] -> 0
C24: 10 | G24: =Table12[[#This Row],[Column11]]*Table12[[#This Row],[Column7]] -> 0
C25: NOTES | F25: TOTAL SALES | G25: =SUM(G15:G24) -> 140000
F26: DISCOUNT
F27: TOTAL | G27: =G25-G26 -> 140000
F28: WAT TAX 1% | G28: =IF(G9="YES",G25*1/100,0) -> 1400
F29: VAT TAX 14% | G29: =IF(G9="YES",G25*14/100,0) -> 19600
F31: FINAL TOTAL | G31: =G25-G26-G28+G29 -> 158200

Sheet DATA SHEET (hidden)
A1: TAX | C1: Branch | E1: Sales Person | G1: Supliers | I1: Payment | K1: Catgory
A2: YES | C2: Mohandseen | E2: M.Wahba | G2: KMN | I2: Cash | K2: Motor Oil
A3: NO | C3: October | E3: Abd Alaziz Ahmed | G3: MAS | I3: cheque | K3: Transmission Oil
C4: Obour | E4: Omina Rashed | G4: NST | I4: Bank Deposit | K4: Specialty
C5: Gamra | E5: Yomna Ashraf | K5: Grease
C6: Assuit | E6: Ghada Gamal
C7: Mansora | E7: Walla Ali
E8: M.Mosalm
E9: Hani Mohamed

Sheet REPORT
A2: TOTAL | F2: =SUM(F5:F1048576) -> 0 | G2: =SUM(G5:G1048576) -> 0 | H2: =SUM(H5:H1048576) -> 0 | I2: =SUM(I5:I1048576) -> 0 | J2: =SUM(J5:J1048576) -> 0 | K2: =SUM(K5:K1048576) -> 0 | O2: =SUM(O5:O1048576) -> 0
A4: التاريخ | B4: اسم العميل | C4: الفرع | D4: مسئول البيع | E4: رقم الفاتورة | F4: اجمالى المبيعات | G4: خصم مسموح | H4: الاجمالى بعد الخصم | I4: ض . ا . ت .ص 1% | J4: ض . ق 14% | K4: صافى الفاتورة | L4: شروط الدفع | M4: تاريخ الاستحقاق | N4: حالة الفاتورة | O4: المتبقى من الفاتورة

Sheet تحصيلات العملاء (hidden)
A1: Date | B1: Customer Name | C1: Invoice No | D1: Amount | E1: Payment Type | F1: Receit No | G1: Notes

Sheet مرتجع مبيعات (hidden)
A1: Date | B1: Customer Name | C1: Invoice No | D1: Amount | E1: Recall Nu | F1: Notes

Sheet المشتريات (hidden)
A1: Date | B1: Suplier Name | C1: Product Name | D1: QTY | E1: Cost | F1: Total Amount
F2: =Table3[[#This Row],[QTY]]*Table3[[#This Row],[Cost]] -> 0
F3: =Table3[[#This Row],[QTY]]*Table3[[#This Row],[Cost]] -> 0
F4: =Table3[[#This Row],[QTY]]*Table3[[#This Row],[Cost]] -> 0
F5: =Table3[[#This Row],[QTY]]*Table3[[#This Row],[Cost]] -> 0
F6: =Table3[[#This Row],[QTY]]*Table3[[#This Row],[Cost]] -> 0
F7: =Table3[[#This Row],[QTY]]*Table3[[#This Row],[Cost]] -> 0
F8: =Table3[[#This Row],[QTY]]*Table3[[#This Row],[Cost]] -> 0
F9: =Table3[[#This Row],[QTY]]*Table3[[#This Row],[Cost]] -> 0
F10: =Table3[[#This Row],[QTY]]*Table3[[#This Row],[Cost]] -> 0
F11: =Table3[[#This Row],[QTY]]*Table3[[#This Row],[Cost]] -> 0
F12: =Table3[[#This Row],[QTY]]*Table3[[#This Row],[Cost]] -> 0
F13: =Table3[[#This Row],[QTY]]*Table3[[#This Row],[Cost]] -> 0
F14: =Table3[[#This Row],[QTY]]*Table3[[#This Row],[Cost]] -> 0
F15: =Table3[[#This Row],[QTY]]*Table3[[#This Row],[Cost]] -> 0
F16: =Table3[[#This Row],[QTY]]*Table3[[#This Row],[Cost]] -> 0
F17: =Table3[[#This Row],[QTY]]*Table3[[#This Row],[Cost]] -> 0
F18: =Table3[[#This Row],[QTY]]*Table3[[#This Row],[Cost]] -> 0
F19: =Table3[[#This Row],[QTY]]*Table3[[#This Row],[Cost]] -> 0
A20: Total | F20: =SUBTOTAL(109,Table3[Total Amount]) -> 0

Sheet صرف مخزنى
A1: التاريخ | B1: اسم العميل | C1: اسم الصنف | D1: الكمية | E1: رقم اذن الصرف | F1: المخزن
